lending/lending_fUSD_20240510
["ID","MTS","AMOUNT","RATE_DAILY","PERIOD"]
[326753644,1715308265921,-738.5929386,0.00027397,21]
[326753645,1715308265933,-99.1770614,0.00027397,21]
[326753646,1715308265944,-249.5994363,0.00027397,4]
[326753647,1715308265955,-250.4005637,0.00027397,4]
[326753648,1715308265965,-354.16960267,0.00027671,5]
[326753649,1715308265976,-250.13277065,0.00027671,5]
[326753650,1715308265988,-413.94287733,0.00027671,5]
[326753651,1715308265999,-592.77,0.00027671,5]
[326753652,1715308266009,-1219.66,0.00027671,5]
[326753653,1715308266019,-1585.33,0.00027671,5]
[326753654,1715308266028,-2907.59,0.00027671,5]
[326753655,1715308266038,-591.04,0.00027671,5]
[326753656,1715308266048,-469.73182821,0.00027671,5]
[326753657,1715308266060,-1681.63817179,0.00027671,5]
[326753658,1715308266069,-2700.48,0.00027671,5]
[326753659,1715308266078,-295.45451635,0.00027671,5]
[326753660,1715308266093,-261.355,0.00027671,5]
[326753661,1715308266376,-150.01,0.00012999,2]
[326753662,1715308266385,-837.77,0.00027397,22]
[326753663,1715308266395,-837.77,0.00027397,23]
[326753664,1715308266404,-837.77,0.00027397,23]
[326753665,1715308266413,-837.77,0.00027397,23]
[326753666,1715308266423,-22.3428,0.00027397,23]
[326753667,1715308266434,-478.70000222,0.00027397,23]
[326753668,1715308266446,-336.72719778,0.00027397,23]
[326753669,1715308266457,-609.50030602,0.00027397,23]
[326753670,1715308266473,-228.3893041,0.00027397,23]
[326753671,1715308266482,-800.20440538,0.00027671,5]
[326753672,1715308266493,-1579.77607827,0.00027671,5]
[326753673,1715308266502,-520.65,0.00027671,5]
[326753674,1715308266514,-611.93,0.00027671,5]
[326753675,1715308266523,-500.0,0.00027671,5]
[326753676,1715308266533,-500.0,0.00027671,5]
[326753677,1715308266544,-500.0,0.00027671,5]
[326753678,1715308266553,-1740.61,0.00027671,5]
[326753679,1715308266562,-1127.35,0.00027671,5]
[326753680,1715308266572,-500.0,0.00027671,5]
[326753681,1715308266582,-892.9,0.00027671,5]
[326753682,1715308266591,-4770.14,0.00027671,5]
[326753683,1715308266601,-1024.04,0.00027671,5]
[326753684,1715308266610,-663.01,0.00027671,5]
[326753685,1715308266619,-500.0,0.00027671,5]
[326753686,1715308266629,-552.57,0.00027671,5]
[326753687,1715308266638,-1030.0,0.00027671,5]
[326753688,1715308266647,-6040.03,0.00027671,5]
[326753689,1715308266656,-1500.3,0.00027671,5]
[326753690,1715308266665,-500.0,0.00027671,5]
[326753691,1715308266675,-2720.82,0.00027671,5]
[326753692,1715308266684,-2721.73,0.00027671,5]
[326753693,1715308266694,-500.0,0.00027671,5]
[326753694,1715308266703,-4111.39,0.00027671,5]
[326753695,1715308266713,-1208.46,0.00027671,5]
[326753696,1715308266723,-500.0,0.00027671,5]
[326753697,1715308266732,-1195.42,0.00027671,5]
[326753698,1715308266742,-9229.54,0.00027671,5]
[326753699,1715308266751,-500.0,0.00027671,5]
[326753700,1715308266760,-500.0,0.00027671,5]
[326753701,1715308266769,-500.0,0.00027671,5]
[326753702,1715308266778,-2274.26,0.00027671,5]
[326753703,1715308266787,-1421.55,0.00027671,5]
[326753704,1715308266796,-1530.44,0.00027671,5]
[326753705,1715308266806,-656.07,0.00027671,5]
[326753706,1715308266815,-500.0,0.00027671,5]
[326753707,1715308266824,-734.71,0.00027671,5]
[326753708,1715308266833,-500.0,0.00027671,5]
[326753709,1715308266842,-500.0,0.00027671,5]
[326753710,1715308266851,-500.0,0.00027671,5]
[326753711,1715308266860,-821.45,0.00027671,5]
[326753712,1715308266869,-12483.03,0.00027671,5]
[326753713,1715308266878,-1005.56,0.00027671,5]
[326753714,1715308266887,-2138.41,0.00027671,5]
[326753715,1715308266896,-3377.34,0.00027671,5]
[326753716,1715308266906,-687.73,0.00027671,5]
[326753717,1715308266915,-2542.49,0.00027671,5]
[326753718,1715308266925,-38.36277856,0.00027671,5]
[326753719,1715308266939,-773.02722144,0.00027671,5]
[326753720,1715308266948,-18754.27823167,0.00027671,5]
[326753721,1715308266960,-401.9671506,0.00027671,5]
[326753722,1715308267007,-5861.29139766,0.00012999,2]
[326753723,1715308267017,-20876.88461773,0.00027671,5]
[326753724,1715308267026,-2110.14,0.00027671,5]
[326753725,1715308267036,-500.0,0.00027671,5]
[326753726,1715308267044,-2211.47368157,0.00027671,5]
[326753727,1715308267802,-541.09450713,0.000129,2]
[326753728,1715308267813,-2302.458,0.00023427,2]
[326753729,1715308267823,-414.85,0.00024055,2]
[326753730,1715308267833,-1172.06631843,0.00027671,5]
[326753731,1715308267843,-80.33732296,0.00027671,5]
[326753732,1715308268143,-2295.0,0.00026427,2]
[326753733,1715308268153,-1695.47,0.00027397,4]
[326753734,1715308268163,-1805.08267704,0.00027671,5]
[326753735,1715308268172,-681.89,0.00027671,5]
[326753736,1715308268181,-959.52,0.00027671,5]
[326753737,1715308268191,-500.0,0.00027671,5]
[326753738,1715308268200,-15859.21,0.00027671,5]
[326753739,1715308268209,-500.0,0.00027671,5]
[326753740,1715308268218,-700.3,0.00027671,5]
[326753741,1715308268229,-500.0,0.00027671,5]
[326753742,1715308268238,-787.77,0.00027671,5]
[326753743,1715308268248,-500.0,0.00027671,5]
[326753744,1715308268258,-655.83,0.00027671,5]
[326753745,1715308268267,-2294.15,0.00027671,5]
[326753746,1715308268276,-2856.93,0.00027671,5]
[326753747,1715308268284,-2582.12,0.00027671,5]
[326753748,1715308268293,-1518.62,0.00027671,5]
[326753749,1715308268302,-1236.51,0.00027671,5]
[326753750,1715308268312,-2373.33,0.00027671,5]
[326753751,1715308268322,-1700.04,0.00027671,5]
[326753752,1715308268331,-500.0,0.00027671,5]
[326753753,1715308268341,-490.214102,0.00027671,5]
[326753754,1715308268351,-835.39,0.00027671,5]
[326753755,1715308268361,-500.0,0.00027671,5]
[326753756,1715308268370,-3501.41,0.00027671,5]
[326753757,1715308268378,-2173.89,0.00027671,5]
[326753758,1715308268387,-500.0,0.00027671,5]
[326753759,1715308268396,-778.01,0.00027671,5]
[326753760,1715308268405,-2631.91,0.00027671,5]
[326753761,1715308268415,-500.0,0.00027671,5]
[326753762,1715308268423,-500.0,0.00027671,5]
[326753763,1715308268432,-7230.71,0.00027671,5]
[326753764,1715308268442,-1695.85,0.00027671,5]
[326753765,1715308268450,-1242.88,0.00027671,5]
[326753766,1715308268464,-852.83,0.00027671,5]
[326753767,1715308268473,-1707.77892428,0.00027671,5]
[326753770,1715308400992,230.08,0.00025,120]
[326753800,1715309432357,-207.18111686,0.00012119,2]
[326753801,1715309432366,-409.26681316,0.0001212,2]
[326753802,1715309432375,-540.30813384,0.00012121,2]
[326753803,1715309432384,-4272.63704827,0.00012122,2]
[326753804,1715309432394,-1062.42695168,0.00012347,2]
[326753805,1715309432403,-1305.32313643,0.00012348,2]
[326753806,1715309432413,-150.0,0.00012897,2]
[326753807,1715309432422,-210.3943,0.00012899,2]
[326753808,1715309432432,-807.1116999,0.000129,2]
[326753809,1715309432441,-528.8047,0.000129,2]
[326753810,1715309432450,-165.11469392,0.000129,2]
[326753811,1715309432460,-2522.46161733,0.000129,2]
[326753812,1715309432471,-482.87677638,0.000129,2]
[326753813,1715309432481,-559.18577829,0.000129,2]
[326753814,1715309432492,-17326.174328,0.000129,2]
[326753815,1715309432502,-2914.6531,0.000129,2]
[326753816,1715309432511,-6591.21,0.000129,2]
[326753817,1715309432521,-473.45769373,0.000129,2]
[326753818,1715309432530,-171.79565419,0.000129,2]
[326753819,1715309432539,-363.82601474,0.00012998,2]
[326753820,1715309432548,-208.83714931,0.00012998,2]
[326753821,1715309432557,-246.12764075,0.00012998,2]
[326753822,1715309432566,-160.90842926,0.00012998,2]
[326753823,1715309432575,-274.99059765,0.00012998,2]
[326753824,1715309432584,-155.4475761,0.00012998,2]
[326753825,1715309432594,-155.68464024,0.00012998,2]
[326753826,1715309432603,-305.97081786,0.00012998,2]
[326753827,1715309432612,-319.84513641,0.00012998,2]
[326753828,1715309432622,-1255.54512123,0.00012998,2]
[326753829,1715309432631,-155.43156514,0.00012998,2]
[326753830,1715309432640,-156.14743941,0.00012998,2]
[326753831,1715309432649,-345.67783995,0.00012998,2]
[326753832,1715309432658,-175.67171908,0.00012998,2]
[326753833,1715309432667,-315.30263345,0.00012998,2]
[326753834,1715309432676,-9632.36590496,0.00012998,2]
[326753835,1715309432685,-155.31515056,0.00012998,2]
[326753836,1715309432694,-459.05080754,0.00012998,2]
[326753837,1715309432704,-3256.10020294,0.00012998,2]
[326753838,1715309432713,-1243.91978297,0.00012998,2]
[326753839,1715309432722,-169.24084949,0.00012999,2]
[326753840,1715309432732,-1221.40208163,0.00012999,2]
[326753841,1715309432741,-212.8264061,0.00012999,2]
[326753842,1715309432755,-156.34913454,0.00012999,2]
[326753843,1715309432767,-157.36617739,0.00012999,2]
[326753844,1715309432777,-29262.54080533,0.00012999,2]
[326753845,1715309432786,-94990.9085542,0.00013,2]
[326753846,1715309432799,-54101.60243352,0.00013,2]
[326753847,1715309433045,-484.28691844,0.00013,2]
[326753852,1715309438308,-534.10085754,0.00012118,2]
[326753853,1715309438318,-1242.89914246,0.00013,2]
[326753854,1715309438329,-1119.0,0.00013,2]
[326753855,1715309438340,-20533.86965765,0.00013,2]
[326753856,1715309438352,-101157.04983419,0.00013,2]
[326753862,1715309440632,-838.84059321,0.000129,2]
[326753863,1715309441730,-1661.15940679,0.000129,2]
[326753864,1715309441740,-433.7897,0.000129,2]
[326753865,1715309441751,-864.695625,0.00013,2]
[326753866,1715309441768,-9894.76560632,0.00013,2]
[326753867,1715309441780,-891.88699385,0.00013,2]
[326753868,1715309441791,-164153.31294003,0.00013,2]
[326753869,1715309441804,-337.374,0.00013,2]
[326753870,1715309441992,-29019.44206654,0.00013,2]
[326753871,1715309442006,-7985.55807276,0.00013,2]
[326753872,1715309442021,-49802.6402514,0.00013,2]
[326753873,1715309442032,-8590.43286449,0.00013,2]
[326753874,1715309442043,-2800.0,0.00013,2]
[326753875,1715309442055,-433.65476328,0.00013,2]
[326753876,1715309442066,-358.8200025,0.00013,2]
[326753877,1715309442076,-780.65283845,0.00013,2]
[326753970,1715309443278,-2301.92000906,0.00013,2]
[326753974,1715309443289,-931.14427352,0.00013,2]
[326753979,1715309443300,-549.89009576,0.00013,2]
[326753982,1715309443311,-2189.73762716,0.00013,2]
[326753985,1715309443322,-263.95605343,0.00013,2]
[326753989,1715309443333,-302.0,0.00013,2]
[326754019,1715309443985,-744.5,0.00013,2]
[326754083,1715309446347,-566.75672653,0.000128,2]
[326754085,1715309446357,-899789.10056975,0.00013,2]
[326754087,1715309446366,-5429.22771451,0.00013,2]
[326754089,1715309446375,-118540.03592654,0.00013,2]
[326754091,1715309446386,-89609.85477399,0.00013,2]
[326754133,1715309523697,1233.43721406,9.75e-05,2]
[326754134,1715309567971,439461.15570612,9.75e-05,2]
[326754135,1715309567993,107617.74517286,9.75e-05,2]
[326754136,1715309572081,1376.56111398,9.75e-05,2]
[326754137,1715309580007,507491.01484513,9.75e-05,2]
[326754138,1715309590204,606.18460862,9.75e-05,2]
[326754140,1715309906468,367.06254583,9.75e-05,2]
[326754141,1715309924032,366.84911597,9.75e-05,2]
[326754142,1715309928060,26578.66127987,9.75e-05,2]
[326754143,1715309955483,7511.37351524,9.75e-05,2]
[326754144,1715309973438,164.32089628,9.75e-05,2]
[326754145,1715310002237,150.0,9.75e-05,2]
[326754146,1715310002434,152.08778193,9.75e-05,2]
[326754149,1715310632539,-818.26057678,0.00012014,2]
[326754152,1715310632556,-425.65920619,0.00012014,2]
[326754154,1715310632567,-60.14368052,0.00012015,2]
[326754157,1715310632580,-900.63318963,0.00012015,2]
[326754160,1715310632590,-7933.46554784,0.00012016,2]
[326754163,1715310632603,-14876.72742344,0.00012016,2]
[326754166,1715310632613,-23900.0,0.00012017,2]
[326754168,1715310632623,-150.0,0.00012017,2]
[326754169,1715310632634,-12223.2414,0.00012024,2]
[326754170,1715310632644,-1500.0,0.00012066,2]
[326754171,1715310632654,-4878.83,0.00012125,2]
[326754172,1715310632664,-250.0,0.00012152,2]
[326754173,1715310632674,-365.79,0.00012157,2]
[326754174,1715310632684,-365.79,0.0001219,2]
[326754175,1715310632694,-365.79,0.00012224,2]
[326754176,1715310632704,-499.99,0.00012224,2]
[326754177,1715310632717,-365.79,0.00012257,2]
[326754178,1715310632727,-320.01,0.00012259,2]
[326754179,1715310632736,-365.79,0.0001229,2]
[326754180,1715310632746,-365.79,0.00012324,2]
[326754181,1715310632755,-304.51363011,0.00012349,2]
[326754182,1715310632766,-365.79,0.00012357,2]
[326754183,1715310632775,-365.79,0.0001239,2]
[326754184,1715310632786,-166.16,0.00012421,2]
[326754185,1715310632795,-1334.32,0.00012421,2]
[326754186,1715310632805,-150.99,0.00012421,2]
[326754187,1715310632814,-365.79,0.00012424,2]
[326754188,1715310632824,-365.79,0.00012457,2]
[326754189,1715310632834,-250.0,0.00012482,2]
[326754190,1715310632844,-365.79,0.0001249,2]
[326754191,1715310632854,-365.79,0.00012524,2]
[326754192,1715310632864,-1360.59,0.00012545,2]
[326754193,1715310632874,-10241.76,0.00012545,2]
[326754194,1715310632883,-365.79,0.00012557,2]
[326754195,1715310632892,-365.79,0.0001259,2]
[326754196,1715310632903,-228.5,0.00012609,2]
[326754224,1715310633269,-365.79,0.00012624,2]
[326754229,1715310633355,-365.79,0.00012657,2]
[326754231,1715310633365,-168.16,0.00012671,2]
[326754233,1715310633375,-365.79,0.0001269,2]
[326754235,1715310633384,-21169.8147,0.00012699,2]
[326754237,1715310633394,-223.1407,0.00012699,2]
[326754239,1715310633403,-210.3943,0.00012699,2]
[326754241,1715310633413,-1000.0,0.00012699,2]
[326754243,1715310633423,-1887.9831,0.00012699,2]
[326754245,1715310633432,-11482.3719,0.00012699,2]
[326754247,1715310633441,-365.79,0.00012724,2]
[326754249,1715310633450,-365.79,0.00012757,2]
[326754251,1715310633462,-244.93,0.00012789,2]
[326754253,1715310633471,-365.79,0.0001279,2]
[326754255,1715310633481,-21204.959,0.00012799,2]
[326754256,1715310633491,-212286.0267,0.00012799,2]
[326754257,1715310633500,-739.85239163,0.000128,2]
[326754258,1715310633509,-152.23552398,0.000128,2]
[326754259,1715310633519,-1288.37630701,0.000128,2]
[326754260,1715310633529,-531.93162376,0.000128,2]
[326754261,1715310633538,-166.78278404,0.00012889,2]
[326754262,1715310633548,-150.0,0.00012897,2]
[326754263,1715310633558,-300.0,0.00012897,2]
[326754264,1715310633567,-188.25108374,0.00012898,2]
[326754265,1715310633576,-2097.47,0.00012898,2]
[326754266,1715310633586,-90655.58970799,0.00012899,2]
[326754267,1715310634024,-112524.13788646,0.00012899,2]
[326754268,1715310634037,-5438.39379598,0.00012899,2]
[326754269,1715310634049,-4575.6,0.00012899,2]
[326754270,1715310634061,-379770.88637403,0.00012899,2]
[326754271,1715310634072,-212993.86523711,0.00012899,2]
[326754272,1715310634143,-619.65012665,0.00012899,2]
[326754273,1715310634155,-504.602,0.00012899,2]
[326754280,1715310638415,-6843.9,0.00012899,2]
[326754286,1715310638427,-771.07115909,0.00012899,2]
[326754288,1715310638440,-882.06164822,0.00012899,2]
[326754290,1715310638451,-652.75240264,0.00012899,2]
[326754292,1715310638464,-2773.28413778,0.00012899,2]
[326754318,1715310640548,-950.36,0.00012899,2]
[326754320,1715310641743,-1036.75063436,0.00012899,2]
[326754321,1715310641758,-2543.97138052,0.00012899,2]
[326754322,1715310641774,-3878.75774265,0.00012899,2]
[326754323,1715310641786,-242290.84476678,0.00012899,2]
[326754324,1715310641798,-1004.5932,0.00012899,2]
[326754325,1715310641811,-5000.0,0.00012899,2]
[326754326,1715310641822,-515.04824103,0.00012899,2]
[326754327,1715310641833,-664.75335024,0.00012899,2]
[326754328,1715310641845,-943.43952736,0.00012899,2]
[326754329,1715310641857,-747.50281511,0.00012899,2]
[326754336,1715310643682,-8612.29288161,0.00012899,2]
[326754339,1715310643694,-49187.50473394,0.00012899,2]
[326754340,1715310643705,-470.23000002,0.00012899,2]
[326754341,1715310644482,-271.40005136,0.00012899,2]
[326754342,1715310644495,-6399.8147,0.00012899,2]
[326754344,1715310646767,-263.63284643,0.00012899,2]
[326754345,1715310646783,-3639.3868,0.00012899,2]
[326754346,1715310646799,-38722.4193582,0.00012899,2]
[326754348,1715311082368,250.0,0.00011378,2]
[326754349,1715311082455,2899.09253577,0.00011679,2]
[326754350,1715311136302,200.0,0.00011414,2]
[326754351,1715311148609,250.0,0.00011414,2]
[326754352,1715311194923,347.51,0.00011356,2]
[326754358,1715311385646,150.0,0.0001112,2]
[326754360,1715311434704,7500.0,0.00011669,2]
[326754361,1715311436366,23900.0,0.00011216,2]
[326754363,1715311484480,159.78,0.00011454,2]
[326754364,1715311484702,159.78,0.00011504,2]
[326754365,1715311484984,159.78,0.00011554,2]
[326754366,1715311485206,159.78,0.00011603,2]
[326754367,1715311485451,159.78,0.00011653,2]
[326754369,1715311515493,155.0,0.000117,2]
[326754370,1715311523112,155.0,0.000117,2]
[326754371,1715311531293,428.03983769,0.000117,2]
[326754372,1715311532489,445.87460892,0.000117,2]
[326754374,1715311534059,2219.88737187,0.000117,2]
[326754375,1715311536244,1243.91978297,0.000117,2]
[326754376,1715311537627,155.0,0.000117,2]
[326754377,1715311542377,155.0,0.000117,2]
[326754378,1715311544069,4738.2243308,0.000117,2]
[326754380,1715311560298,9866.34617873,0.000117,2]
[326754381,1715311562643,540.30813384,0.000117,2]
[326754382,1715311564342,2360.00358447,0.000117,2]
[326754383,1715311576949,423.02647658,0.000117,2]
[326754384,1715311611231,250.0,0.00011246,2]
[326754386,1715311627332,324.50794331,0.000117,2]
[326754387,1715311698515,231.34,0.00011198,2]
[326754388,1715311715356,2360.00358447,0.000117,2]
[326754390,1715311732003,445.87460892,0.000117,2]
[326754391,1715311789880,2360.00358447,0.000117,2]
[326754393,1715311802632,150.0,0.000117,2]
[326754394,1715311832496,-1243.91978297,0.00011701,2]
[326754395,1715311832506,-12427.43054205,0.00011701,2]
[326754396,1715311832521,-883.54995,0.00011701,2]
[326754397,1715311832534,-846.47,0.00011701,2]
[326754399,1715311832546,-350.2299999,0.00011701,2]
[326754401,1715311832557,-358.22005688,0.00011701,2]
[326754403,1715311832569,-4608.92245708,0.00011701,2]
[326754405,1715311832578,-159.78,0.00011703,2]
[326754407,1715311832588,-271.0750811,0.00011726,2]
[326754409,1715311832597,-155.56243822,0.00011732,2]
[326754410,1715311832607,-268.26366182,0.00011732,2]
[326754411,1715311832616,-155.88297326,0.00011732,2]
[326754412,1715311832626,-155.67344767,0.00011732,2]
[326754413,1715311832635,-3724.23201987,0.00011732,2]
[326754416,1715311832937,-1092.70012273,0.00011732,2]
[326754417,1715311832947,-264.9287326,0.00011733,2]
[326754419,1715311832958,-487.5918149,0.00011733,2]
[326754421,1715311832968,-159.78,0.00011752,2]
[326754422,1715311832977,-999.99,0.00011759,2]
[326754424,1715311832987,-2370.89456275,0.00011776,2]
[326754426,1715311832996,-373.0807841,0.00011777,2]
[326754427,1715311833005,-303.6,0.00011778,2]
[326754429,1715311833015,-150.99,0.00011778,2]
[326754430,1715311833024,-1112.62,0.00011778,2]
[326754432,1715311833033,-299.99,0.00011778,2]
[326754434,1715311833042,-3336.71375707,0.00011778,2]
[326754436,1715311833054,-49029.39624293,0.00011778,2]
[326754437,1715311833063,-499.99,0.00011778,2]
[326754439,1715311833072,-159.78,0.00011802,2]
[326754441,1715311833081,-2073.9996,0.0001185,2]
[326754442,1715311833090,-159.78,0.00011852,2]
[326754443,1715311833100,-256.0,0.00011858,2]
[326754444,1715311833110,-159.78,0.00011902,2]
[326754445,1715311833119,-4361.89825064,0.00011949,2]
[326754446,1715311833129,-159.78,0.00011951,2]
[326754447,1715311833138,-2172.59155546,0.00012,2]
[326754448,1715311833147,-159.78,0.00012001,2]
[326754449,1715311833157,-159.78,0.00012051,2]
[326754450,1715311833166,-328.65616655,0.00012252,2]
[326754451,1715311833176,-184.91,0.00012426,2]
[326754453,1715311833185,-12144.86120231,0.00012587,2]
[326754455,1715311833195,-411.36480938,0.00012597,2]
[326754457,1715311833204,-158.17649238,0.00012599,2]
[326754459,1715311833213,-151.02,0.00012688,2]
[326754461,1715311833222,-231.86,0.00012688,2]
[326754463,1715311833232,-231.86,0.00012688,2]
[326754465,1715311833241,-225.37045452,0.00012688,2]
[326754467,1715311833251,-231.86,0.00012688,2]
[326754469,1715311833260,-151.02,0.00012689,2]
[326754471,1715311833269,-231.86,0.00012689,2]
[326754473,1715311833280,-231.86,0.00012689,2]
[326754475,1715311833289,-231.86,0.00012689,2]
[326754477,1715311833298,-447.77909546,0.00012696,2]
[326754479,1715311833307,-8786.0456,0.00012698,2]
[326754481,1715311833317,-77156.66180335,0.00012698,2]
[326754483,1715311833328,-5468.5,0.00012698,2]
[326754486,1715311833340,-2806.07803994,0.00012698,2]
[326754537,1715311838524,-405.00005,0.00012698,2]
[326754538,1715311838538,-601757.20327048,0.00012698,2]
[326754539,1715311838547,-2500.0,0.00012699,2]
[326754540,1715311838557,-117099.34653537,0.00012699,2]
[326754541,1715311838568,-4507.37022847,0.00012699,2]
[326754542,1715311838580,-9893.07176134,0.00012699,2]
[326754543,1715311838592,-5101.000001,0.00012699,2]
[326754544,1715311838604,-1309.14461714,0.00012699,2]
[326754545,1715311838615,-2267.27363512,0.00012699,2]
[326754547,1715311838870,-344606.62652156,0.00012699,2]
[326754549,1715311838880,-154.89268491,0.00012699,2]
[326754551,1715311838893,-518.6589033,0.00012712,2]
[326754553,1715311838902,-838.04946646,0.00012755,2]
[326754555,1715311838912,-22793.45591556,0.00012769,2]
[326754556,1715311838922,-151.02,0.00012789,2]
[326754558,1715311838931,-231.86,0.00012789,2]
[326754559,1715311838940,-231.86,0.00012789,2]
[326754560,1715311838950,-7506.04567181,0.00012796,2]
[326754561,1715311838959,-155.6962212,0.00012796,2]
[326754562,1715311838969,-155.35624717,0.00012796,2]
[326754563,1715311838979,-217.63716476,0.00012796,2]
[326754564,1715311838989,-160.08390165,0.00012796,2]
[326754565,1715311838998,-263.76677859,0.00012796,2]
[326754566,1715311839008,-3190.78673407,0.00012796,2]
[326754567,1715311839018,-155.0,0.00012796,2]
[326754568,1715311839027,-167.20569175,0.00012796,2]
[326754569,1715311839037,-271.69594853,0.00012796,2]
[326754570,1715311839047,-155.0,0.00012796,2]
[326754571,1715311839057,-208.79388745,0.00012797,2]
[326754572,1715311839067,-1684.35110577,0.00012797,2]
[326754573,1715311839077,-245000.0,0.00012799,2]
[326754574,1715311839087,-307.5999,0.00012799,2]
[326754575,1715311839097,-39127.5656,0.00012799,2]
[326754576,1715311839107,-100000.0,0.00012799,2]
[326754577,1715311839116,-1000.0,0.00012799,2]
[326754578,1715311839126,-160.0,0.00012829,2]
[326754579,1715311839136,-210.0,0.0001287,2]
[326754580,1715311839146,-263.73298514,0.00012895,2]
[326754581,1715311839156,-263.79855002,0.00012895,2]
[326754582,1715311839166,-788.14701087,0.00012896,2]
[326754583,1715311839176,-370.54929492,0.00012897,2]
[326754584,1715311839186,-319.34028985,0.00012897,2]
[326754585,1715311839196,-7500.0,0.00012899,2]
[326754586,1715311839206,-483.91707,0.00012899,2]
[326754587,1715311839216,-169.93969033,0.000129,2]
[326754588,1715311839226,-940.62581251,0.000129,2]
[326754589,1715311839237,-203.08660775,0.000129,2]
[326754590,1715311839247,-151.02,0.0001299,2]
[326754591,1715311839258,-151.02,0.0001299,2]
[326754592,1715311839267,-151.02,0.0001299,2]
[326754593,1715311839277,-151.02,0.0001299,2]
[326754594,1715311839288,-151.02,0.0001299,2]
[326754595,1715311839297,-151.02,0.0001299,2]
[326754596,1715311839307,-151.02,0.0001299,2]
[326754597,1715311839317,-151.02,0.0001299,2]
[326754598,1715311839327,-151.02,0.0001299,2]
[326754599,1715311839337,-231.86,0.0001299,2]
[326754600,1715311839347,-231.86,0.0001299,2]
[326754601,1715311839357,-525.91176135,0.00012998,2]
[326754602,1715311839367,-4281.52172194,0.00012999,2]
[326754603,1715311839376,-267.29580257,0.00012999,2]
[326754604,1715311839387,-321.07842002,0.00012999,2]
[326754605,1715311839397,-2138031.64576994,0.00013,2]
[326754606,1715311839410,-758765.33458609,0.00013,2]
[326754607,1715311839422,-323.28409323,0.00013,2]
[326754608,1715311839435,-34019.66255212,0.00013,2]
[326754609,1715311839447,-597.4,0.00013,2]
[326754615,1715311840922,-662.70634916,0.00013,2]
[326754616,1715311841715,-745.0,0.00013,2]
[326754617,1715311841729,-195509.56687678,0.00013,2]
[326754618,1715311841743,-4127.48985413,0.00013,2]
[326754620,1715311841755,-373.36838774,0.00013,2]
[326754622,1715311841767,-1191.37663688,0.00013,2]
[326754624,1715311841780,-1429.90181486,0.00013,2]
[326754626,1715311841792,-453.8784,0.00013,2]
[326754629,1715311841805,-18304.68906676,0.00013,2]
[326754631,1715311841820,-302.30712619,0.00013,2]
[326754633,1715311841831,-303.77994562,0.00013,2]
[326754635,1715311841840,-256.0,0.00013341,2]
[326754637,1715311841852,-14791.0,0.00013351,2]
[326754639,1715311841862,-161.0,0.00013425,2]
[326754641,1715311841872,-160.18,0.00013425,2]
[326754643,1715311841882,-231.34,0.00013938,2]
[326754645,1715311841894,-483.91708,0.0001396,2]
[326754647,1715311841904,-178.740768,0.00013973,2]
[326754649,1715311841915,-293.0,0.00014157,2]
[326754651,1715311841927,-151.02,0.00014184,2]
[326754653,1715311841938,-12144.86120229,0.00014194,2]
[326754655,1715311841950,-160.0,0.00014433,2]
[326754657,1715311841961,-414.27548197,0.0001477,2]
[326754659,1715311841971,-178.740768,0.00014795,2]
[326754661,1715311841981,-256.0,0.00014823,2]
[326754663,1715311841991,-483.91708,0.0001521,2]
[326754665,1715311842001,-178.740768,0.00015616,2]
[326754667,1715311842011,-12144.86120229,0.00015801,2]
[326754669,1715311842021,-160.0,0.00016037,2]
[326754671,1715311842033,-256.0,0.00016305,2]
[326754673,1715311842043,-178.740768,0.00016438,2]